[Event "ESTCC 50 2019"]
[Site "Mali Losinj"]
[Date "2019.09.25"]
[Round "8.2"]
[White "Lewis, Andrew P"]
[Black "Shcherbakov, Ruslan"]
[Result "0-1"]
[ECO "E32"]
[WhiteElo "2294"]
[BlackElo "2516"]
[Annotator "ChessBase"]
[PlyCount "72"]
[EventDate "2019.09.18"]
[EventType "team-tourn"]
[EventCountry "CRO"]
[SourceTitle "playchess.com"]
[Source "ChessBase"]
[SourceQuality "1"]
[WhiteTeam "England"]
[BlackTeam "Russia"]
[WhiteTeamCountry "ENG"]
[BlackTeamCountry "RUS"]
[TimeControl "40/5400+30:1800+30"]

1. d4 {[%emt 0:00:30]} Nf6 {[%emt 0:03:30]} 2. c4 {[%emt 0:00:00]} e6 {[%emt 0:00:30]} 3. Nc3 {[%emt 0:00:00]} Bb4 {[%emt 0:00:30]} 4. Qc2 {[%emt 0:00:30]} d6 {[%emt 0:00:30]} 5. Nf3 {[%emt 0:05:30]} Nbd7 {[%emt 0:02:30]} 6. e3 {[%emt 0:05:30]} b6 {[%emt 0:16:30]} 7. Bd3 {[%emt 0:12:30]} Bb7 {[%emt 0:05:30]} 8. a3 {[%emt 0:03:30]} Bxc3+ {[%emt 0:00:00]} 9. bxc3 {[%emt 0:00:00]} e5 {[%emt 0:03:00]} 10. e4 {[%emt 0:01:00]} O-O {[%emt 0:01:30]} 11. O-O {[%emt 0:00:30]} Re8 {[%emt 0:00:30]} 12. Re1 {[%emt 0:01:30]} c5 {[%emt 0:01:30]} 13. d5 {[%emt 0:01:30]} Nf8 {[%emt 0:00:30]} 14. a4 {[%emt 0:08:30]} Ng6 {[%emt 0:02:30]} 15. h3 {[%emt 0:02:30]} Bc8 {[%emt 0:01:30]} 16. Bd2 {[%emt 0:05:30]} a5 {[%emt 0:10:30]} 17. Bf1 {[%emt 0:01:30]} h6 {[%emt 0:02:30]} 18. g3 {[%emt 0:03:30]} Nh7 {[%emt 0:02:30]} 19. Kh2 {[%emt 0:01:30]} Rf8 {[%emt 0:01:30]} 20. Bd3 {[%emt 0:17:30]} Qf6 {[%emt 0:11:30]} 21. Be2 {[%emt 0:08:29]} Bd7 {[%emt 0:04:30]} 22. Rf1 {[%emt 0:02:02]} Qd8 {[%emt 0:03:30]} 23. Bd3 {[%emt 0:01:27]} Qc8 {[%emt 0:07:41]} 24. Ng1 {[%emt 0:02:18]} f5 {[%emt 0:00:16]} 25. Rab1 {[%emt 0:04:23]} f4 {[%emt 0:03:36]} 26. Rxb6 {[%emt 0:04:26]} Qc7 {[%emt 0:00:23]} 27. Rbb1 {[%emt 0:03:09]} Rf6 {[%emt 0:00:56]} 28. Be2 {[%emt 0:02:19]} Raf8 {[%emt 0:00:26]} 29. Qd3 {[%emt 0:01:40]} Bxa4 {[%emt 0:03:54]} 30. g4 {[%emt 0:00:12]} f3 {[%emt 0:05:25]} 31. Nxf3 {[%emt 0:00:55]} Qf7 {[%emt 0:01:13]} 32. Kg3 {[%emt 0:00:52]} Bc2 {[%emt 0:01:09]} 33. Qe3 {[%emt 0:00:41]} Nf4 {[%emt 0:00:42]} 34. Ng1 {[%emt 0:00:36]} Ng5 {[%emt 0:01:55]} 35. f3 {[%emt 0:00:22]} Bxb1 {[%emt 0:00:23]} 36. Rxb1 {[%emt 0:00:09]} Nxe2+ {[%emt 0:00:13]} 0-1

[Event "ESTCC 50 2019"]
[Site "Mali Losinj"]
[Date "2019.09.25"]
[Round "8.3"]
[White "Yakovich, Yuri"]
[Black "Ledger, Dave J"]
[Result "1-0"]
[ECO "E44"]
[WhiteElo "2518"]
[BlackElo "2134"]
[Annotator "ChessBase"]
[PlyCount "63"]
[EventDate "2019.09.18"]
[EventType "team-tourn"]
[EventCountry "CRO"]
[SourceTitle "playchess.com"]
[Source "ChessBase"]
[SourceQuality "1"]
[WhiteTeam "Russia"]
[BlackTeam "England"]
[WhiteTeamCountry "RUS"]
[BlackTeamCountry "ENG"]
[TimeControl "40/5400+30:1800+30"]

1. d4 {[%emt 0:00:30]} Nf6 {[%emt 0:00:30]} 2. c4 {[%emt 0:00:00]} e6 {[%emt 0:00:30]} 3. Nc3 {[%emt 0:00:00]} Bb4 {[%emt 0:00:30]} 4. e3 {[%emt 0:00:30]} b6 {[%emt 0:01:30]} 5. Nge2 {[%emt 0:00:00]} Bb7 {[%emt 0:02:30]} 6. a3 {[%emt 0:00:00]} Bxc3+ {[%emt 0:00:30]} 7. Nxc3 {[%emt 0:00:30]} O-O {[%emt 0:00:30]} 8. Bd3 {[%emt 0:00:30]} d5 {[%emt 0:03:30]} 9. cxd5 {[%emt 0:04:30]} exd5 {[%emt 0:00:30]} 10. b4 {[%emt 0:00:30]} Ne4 {[%emt 0:04:30]} 11. Qb3 {[%emt 0:01:30]} Re8 {[%emt 0:05:30]} 12. O-O {[%emt 0:01:30]} Re6 {[%emt 0:04:30]} 13. f3 {[%emt 0:03:30]} Nxc3 {[%emt 0:03:30]} 14. Qxc3 {[%emt 0:00:00]} Nd7 {[%emt 0:01:30]} 15. Bb2 {[%emt 0:16:00]} Nf6 {[%emt 0:07:30]} 16. Rac1 {[%emt 0:10:30]} Rc6 {[%emt 0:06:30]} 17. Qd2 {[%emt 0:00:00]} Rxc1 {[%emt 0:00:30]} 18. Rxc1 {[%emt 0:00:00]} Qe7 {[%emt 0:00:30]} 19. Rc3 {[%emt 0:15:30]} Ne8 {[%emt 0:15:30]} 20. Bc1 {[%emt 0:00:30]} Rd8 {[%emt 0:01:30]} 21. b5 {[%emt 0:05:30]} Rd6 {[%emt 0:03:30]} 22. a4 {[%emt 0:04:30]} Rh6 {[%emt 0:02:30]} 23. Ba3 {[%emt 0:04:30]} Qh4 {[%emt 0:05:30]} 24. h3 {[%emt 0:02:30]} Bc8 {[%emt 0:00:30]} 25. Qf2 {[%emt 0:00:30]} Qh5 {[%emt 0:03:30]} 26. Qg3 {[%emt 0:04:30]} Re6 {[%emt 0:02:30]} 27. Kh2 {[%emt 0:07:36]} g6 {[%emt 0:03:56]} 28. e4 {[%emt 0:00:57]} Bb7 {[%emt 0:04:39]} 29. e5 {[%emt 0:02:10]} c6 {[%emt 0:01:32]} 30. Qg4 {[%emt 0:02:07]} Ng7 {[%emt 0:00:40]} 31. Qxh5 {[%emt 0:00:17]} Nxh5 {[%emt 0:00:15]} 32. Bd6 {[%emt 0:00:30]} 1-0

[Event "ESTCC 50 2019"]
[Site "Mali Losinj"]
[Date "2019.09.25"]
[Round "8.4"]
[White "Nelson, Jonathan P"]
[Black "Ibragimov, Ildar"]
[Result "0-1"]
[ECO "A46"]
[WhiteElo "2183"]
[BlackElo "2537"]
[Annotator "ChessBase"]
[PlyCount "62"]
[EventDate "2019.09.18"]
[EventType "team-tourn"]
[EventCountry "CRO"]
[SourceTitle "playchess.com"]
[Source "ChessBase"]
[SourceQuality "1"]
[WhiteTeam "England"]
[BlackTeam "Russia"]
[WhiteTeamCountry "ENG"]
[BlackTeamCountry "RUS"]
[TimeControl "40/5400+30:1800+30"]

1. d4 {[%emt 0:00:30]} Nf6 {[%emt 0:00:30]} 2. Nf3 {[%emt 0:00:00]} e6 {[%emt 0:01:30]} 3. Bg5 {[%emt 0:00:00]} h6 {[%emt 0:00:30]} 4. Bh4 {[%emt 0:00:30]} b6 {[%emt 0:07:30]} 5. e3 {[%emt 0:00:30]} Bb7 {[%emt 0:03:30]} 6. Bd3 {[%emt 0:01:30]} d6 {[%emt 0:04:30]} 7. Qe2 {[%emt 0:08:30]} g5 {[%emt 0:04:30]} 8. Bg3 {[%emt 0:00:30]} Ne4 {[%emt 0:00:00]} 9. Nbd2 {[%emt 0:01:30]} f5 {[%emt 0:04:00]} 10. Bc4 {[%emt 0:07:30]} Nxg3 {[%emt 0:14:30]} 11. fxg3 {[%emt 0:02:30]} Qe7 {[%emt 0:01:30]} 12. O-O {[%emt 0:07:30]} Bg7 {[%emt 0:06:30]} 13. e4 {[%emt 0:11:30]} fxe4 {[%emt 0:10:30]} 14. Nxe4 {[%emt 0:01:30]} d5 {[%emt 0:06:30]} 15. Ne5 {[%emt 0:17:30]} Bxe5 {[%emt 0:02:30]} 16. dxe5 {[%emt 0:01:30]} Kd8 {[%emt 0:06:30]} 17. Rad1 {[%emt 0:07:30]} Kc8 {[%emt 0:00:30]} 18. Rf6 {[%emt 0:20:01]} Nd7 {[%emt 0:03:30]} 19. Ba6 {[%emt 0:03:56]} dxe4 {[%emt 0:11:41]} 20. Bxb7+ {[%emt 0:01:33]} Kxb7 {[%emt 0:00:05]} 21. Qxe4+ {[%emt 0:00:14]} Kb8 {[%emt 0:00:39]} 22. Rf3 {[%emt 0:02:02]} Nc5 {[%emt 0:00:48]} 23. Qg6 {[%emt 0:00:59]} Qe8 {[%emt 0:01:31]} 24. Rf7 {[%emt 0:00:48]} a5 {[%emt 0:03:46]} 25. c3 {[%emt 0:01:21]} a4 {[%emt 0:00:07]} 26. Qg7 {[%emt 0:00:26]} Qg8 {[%emt 0:02:09]} 27. Qf6 {[%emt 0:00:37]} Qc8 {[%emt 0:01:26]} 28. b4 {[%emt 0:00:30]} axb3 {[%emt 0:00:03]} 29. axb3 {[%emt 0:00:04]} Ra2 {[%emt 0:00:37]} 30. b4 {[%emt 0:00:24]} Ne4 {[%emt 0:00:22]} 31. Qf3 {[%emt 0:01:08]} Rf2 {[%emt 0:00:43]} 0-1

[Event "ESTCC 50 2019"]
[Site "Mali Losinj"]
[Date "2019.09.25"]
[Round "8.5"]
[White "Kozul, Zdenko"]
[Black "Wallace, Paul"]
[Result "1-0"]
[ECO "E94"]
[WhiteElo "2569"]
[BlackElo "2153"]
[Annotator "ChessBase"]
[PlyCount "53"]
[EventDate "2019.09.18"]
[EventType "team-tourn"]
[EventCountry "CRO"]
[SourceTitle "playchess.com"]
[Source "ChessBase"]
[SourceQuality "1"]
[WhiteTeam "CRO"]
[BlackTeam "IRL"]
[WhiteTeamCountry "CRO"]
[BlackTeamCountry "AUS"]
[TimeControl "40/5400+30:1800+30"]

1. d4 {[%emt 0:02:30]} g6 {[%emt 0:00:30]} 2. c4 {[%emt 0:00:30]} Bg7 {[%emt 0:00:00]} 3. Nf3 {[%emt 0:00:30]} Nf6 {[%emt 0:00:00]} 4. Nc3 {[%emt 0:00:00]} O-O {[%emt 0:00:30]} 5. e4 {[%emt 0:01:00]} d6 {[%emt 0:00:00]} 6. Be2 {[%emt 0:00:30]} e5 {[%emt 0:00:00]} 7. O-O {[%emt 0:01:30]} Na6 {[%emt 0:02:30]} 8. d5 {[%emt 0:10:30]} Nc5 {[%emt 0:01:30]} 9. Bg5 {[%emt 0:00:30]} a5 {[%emt 0:04:30]} 10. Nd2 {[%emt 0:02:30]} h6 {[%emt 0:05:30]} 11. Be3 {[%emt 0:10:30]} c6 {[%emt 0:08:30]} 12. a3 {[%emt 0:01:30]} Bd7 {[%emt 0:09:30]} 13. b4 {[%emt 0:01:30]} axb4 {[%emt 0:01:30]} 14. axb4 {[%emt 0:00:30]} Rxa1 {[%emt 0:00:00]} 15. Qxa1 {[%emt 0:00:30]} cxd5 {[%emt 0:01:00]} 16. cxd5 {[%emt 0:00:30]} Na6 {[%emt 0:00:30]} 17. Bxa6 {[%emt 0:02:30]} bxa6 {[%emt 0:00:00]} 18. Qxa6 {[%emt 0:00:00]} Qb8 {[%emt 0:03:00]} 19. b5 {[%emt 0:10:00]} Rc8 {[%emt 0:05:30]} 20. Qa5 {[%emt 0:08:30]} Ng4 {[%emt 0:09:30]} 21. Ba7 {[%emt 0:02:30]} Qb7 {[%emt 0:00:30]} 22. h3 {[%emt 0:05:30]} Ra8 {[%emt 0:01:30]} 23. b6 {[%emt 0:01:30]} Nf6 {[%emt 0:00:00]} 24. Nc4 {[%emt 0:02:30]} Bf8 {[%emt 0:01:00]} 25. Ra1 {[%emt 0:00:30]} Bc8 {[%emt 0:03:30]} 26. Qb5 {[%emt 0:08:30]} Qd7 {[%emt 0:12:30]} 27. Na5 {[%emt 0:03:30]} 1-0

[Event "ESTCC 50 2019"]
[Site "Mali Losinj"]
[Date "2019.09.25"]
[Round "8.6"]
[White "Fox, Anthony"]
[Black "Zelcic, Robert"]
[Result "0-1"]
[ECO "B05"]
[WhiteElo "2023"]
[BlackElo "2503"]
[Annotator "ChessBase"]
[PlyCount "98"]
[EventDate "2019.09.18"]
[EventType "team-tourn"]
[EventCountry "CRO"]
[SourceTitle "playchess.com"]
[Source "ChessBase"]
[SourceQuality "1"]
[WhiteTeam "Ireland"]
[BlackTeam "Croatia"]
[WhiteTeamCountry "IRL"]
[BlackTeamCountry "CRO"]
[TimeControl "40/5400+30:1800+30"]

1. e4 {[%emt 0:00:30]} Nf6 {[%emt 0:00:30]} 2. e5 {[%emt 0:00:00]} Nd5 {[%emt 0:00:30]} 3. d4 {[%emt 0:00:00]} d6 {[%emt 0:00:00]} 4. Nf3 {[%emt 0:00:30]} Bg4 {[%emt 0:00:00]} 5. Be2 {[%emt 0:00:30]} c6 {[%emt 0:00:30]} 6. O-O {[%emt 0:01:30]} Bxf3 {[%emt 0:00:00]} 7. Bxf3 {[%emt 0:00:30]} dxe5 {[%emt 0:00:00]} 8. dxe5 {[%emt 0:00:30]} e6 {[%emt 0:00:00]} 9. c4 {[%emt 0:14:30]} Ne7 {[%emt 0:00:00]} 10. Qxd8+ {[%emt 0:01:30]} Kxd8 {[%emt 0:00:30]} 11. Be4 {[%emt 0:05:30]} Nd7 {[%emt 0:04:30]} 12. f4 {[%emt 0:01:30]} Nf5 {[%emt 0:00:30]} 13. Bxf5 {[%emt 0:00:30]} Bc5+ {[%emt 0:03:30]} 14. Kh1 {[%emt 0:00:30]} exf5 {[%emt 0:00:00]} 15. Nd2 {[%emt 0:01:30]} Ke7 {[%emt 0:01:00]} 16. Nf3 {[%emt 0:03:30]} Rhd8 {[%emt 0:03:30]} 17. b3 {[%emt 0:21:30]} Nf8 {[%emt 0:03:30]} 18. Bb2 {[%emt 0:02:30]} Ne6 {[%emt 0:00:30]} 19. g3 {[%emt 0:02:30]} Rd3 {[%emt 0:00:30]} 20. Rad1 {[%emt 0:04:30]} Rad8 {[%emt 0:00:00]} 21. Rxd3 {[%emt 0:00:30]} Rxd3 {[%emt 0:00:00]} 22. Kg2 {[%emt 0:00:30]} a5 {[%emt 0:11:30]} 23. Rc1 {[%emt 0:04:30]} h5 {[%emt 0:03:30]} 24. h4 {[%emt 0:01:30]} g6 {[%emt 0:01:30]} 25. Rc3 {[%emt 0:01:30]} Rd8 {[%emt 0:00:30]} 26. Rc2 {[%emt 0:00:30]} a4 {[%emt 0:02:30]} 27. Bc3 {[%emt 0:06:30]} axb3 {[%emt 0:00:30]} 28. axb3 {[%emt 0:00:00]} Rd1 {[%emt 0:00:30]} 29. b4 {[%emt 0:03:00]} Be3 {[%emt 0:00:00]} 30. Re2 {[%emt 0:03:45]} Rd3 {[%emt 0:03:00]} 31. Rc2 {[%emt 0:00:11]} Ke8 {[%emt 0:10:30]} 32. Ne1 {[%emt 0:05:30]} Rxc3 {[%emt 0:01:30]} 33. Rxc3 {[%emt 0:00:49]} Bd2 {[%emt 0:00:30]} 34. Ra3 {[%emt 0:03:50]} Bxe1 {[%emt 0:00:00]} 35. Ra7 {[%emt 0:02:19]} Nd8 {[%emt 0:05:00]} 36. b5 {[%emt 0:00:24]} cxb5 {[%emt 0:00:30]} 37. cxb5 {[%emt 0:00:26]} Bb4 {[%emt 0:00:30]} 38. Ra4 {[%emt 0:01:47]} Bc5 {[%emt 0:00:30]} 39. Rc4 {[%emt 0:00:10]} b6 {[%emt 0:00:00]} 40. Ra4 {[%emt 0:00:25]} Ne6 {[%emt 0:00:00]} 41. Ra1 {[%emt 0:32:19]} Nd4 {[%emt 0:32:30]} 42. Rb1 {[%emt 0:01:56]} Ke7 {[%emt 0:00:00]} 43. Rb2 {[%emt 0:01:07]} Ke6 {[%emt 0:00:00]} 44. Rb1 {[%emt 0:00:13]} Kd5 {[%emt 0:00:30]} 45. Rd1 {[%emt 0:02:06]} Kc4 {[%emt 0:00:30]} 46. Ra1 {[%emt 0:00:50]} Nxb5 {[%emt 0:00:30]} 47. e6 {[%emt 0:00:17]} fxe6 {[%emt 0:00:00]} 48. Ra8 {[%emt 0:00:11]} Nd4 {[%emt 0:00:00]} 49. Rg8 {[%emt 0:00:22]} b5 {[%emt 0:00:00]} 0-1

[Event "ESTCC 50 2019"]
[Site "Mali Losinj"]
[Date "2019.09.25"]
[Round "8.7"]
[White "Kurajica, Bojan"]
[Black "Cafolla, Peter"]
[Result "1-0"]
[ECO "D34"]
[WhiteElo "2493"]
[BlackElo "1919"]
[Annotator "ChessBase"]
[PlyCount "63"]
[EventDate "2019.09.18"]
[EventType "team-tourn"]
[EventCountry "CRO"]
[SourceTitle "playchess.com"]
[Source "ChessBase"]
[SourceQuality "1"]
[WhiteTeam "Croatia"]
[BlackTeam "Ireland"]
[WhiteTeamCountry "CRO"]
[BlackTeamCountry "IRL"]
[TimeControl "40/5400+30:1800+30"]

1. Nf3 {[%emt 0:01:30]} d5 {[%emt 0:00:30]} 2. d4 {[%emt 0:00:00]} e6 {[%emt 0:00:00]} 3. g3 {[%emt 0:00:00]} c5 {[%emt 0:00:00]} 4. c4 {[%emt 0:01:30]} Nc6 {[%emt 0:00:30]} 5. cxd5 {[%emt 0:00:30]} exd5 {[%emt 0:00:00]} 6. Bg2 {[%emt 0:00:30]} Nf6 {[%emt 0:00:00]} 7. O-O {[%emt 0:00:30]} Be7 {[%emt 0:00:30]} 8. dxc5 {[%emt 0:00:30]} Bxc5 {[%emt 0:00:00]} 9. Bg5 {[%emt 0:01:30]} O-O {[%emt 0:03:00]} 10. Nc3 {[%emt 0:00:30]} d4 {[%emt 0:00:30]} 11. Bxf6 {[%emt 0:03:30]} Qxf6 {[%emt 0:00:30]} 12. Nd5 {[%emt 0:00:30]} Qd8 {[%emt 0:01:30]} 13. Nd2 {[%emt 0:00:30]} Re8 {[%emt 0:07:30]} 14. Rc1 {[%emt 0:04:30]} Bb6 {[%emt 0:03:30]} 15. Nc4 {[%emt 0:08:30]} Be6 {[%emt 0:02:30]} 16. Nf4 {[%emt 0:00:30]} Rc8 {[%emt 0:05:30]} 17. Nxe6 {[%emt 0:00:30]} fxe6 {[%emt 0:00:00]} 18. Be4 {[%emt 0:08:30]} Bc7 {[%emt 0:07:00]} 19. Qd3 {[%emt 0:01:30]} h6 {[%emt 0:01:30]} 20. Rfd1 {[%emt 0:02:30]} Bb6 {[%emt 0:15:30]} 21. a3 {[%emt 0:07:30]} Re7 {[%emt 0:04:30]} 22. Nxb6 {[%emt 0:13:30]} Qxb6 {[%emt 0:02:30]} 23. Bxc6 {[%emt 0:01:30]} Rxc6 {[%emt 0:09:30]} 24. Rxc6 {[%emt 0:02:30]} Qxc6 {[%emt 0:00:30]} 25. Qxd4 {[%emt 0:00:30]} a6 {[%emt 0:00:30]} 26. Qd8+ {[%emt 0:00:30]} Re8 {[%emt 0:00:30]} 27. Qd7 {[%emt 0:00:30]} Rc8 {[%emt 0:00:30]} 28. Rd6 {[%emt 0:06:30]} Qc1+ {[%emt 0:03:30]} 29. Kg2 {[%emt 0:01:30]} Qc2 {[%emt 0:04:30]} 30. Qxe6+ {[%emt 0:07:30]} Kh8 {[%emt 0:01:30]} 31. Qe5 {[%emt 0:05:30]} Rc5 {[%emt 0:01:30]} 32. Rxh6+ {[%emt 0:00:30]} 1-0

[Event "ESTCC 50 2019"]
[Site "Mali Losinj"]
[Date "2019.09.25"]
[Round "8.8"]
[White "Lyons, Brendan"]
[Black "Fercec, Nenad"]
[Result "0-1"]
[ECO "A04"]
[WhiteElo "1971"]
[BlackElo "2439"]
[Annotator "NA"]
[PlyCount "58"]
[EventDate "2019.09.18"]
[EventType "team-tourn"]
[EventCountry "CRO"]
[SourceTitle "playchess.com"]
[Source "ChessBase"]
[SourceQuality "1"]
[WhiteTeam "Ireland"]
[BlackTeam "Croatia"]
[WhiteTeamCountry "IRL"]
[BlackTeamCountry "CRO"]
[TimeControl "40/5400+30:1800+30"]

1. e4 {[%emt 0:00:30]} c5 {[%emt 0:00:30]} 2. Nf3 {[%emt 0:00:30]} d6 {[%emt 0:00:30]} 3. g3 {[%emt 0:00:30]} g6 {[%emt 0:00:30]} 4. Bg2 {[%emt 0:00:30]} Bg7 {[%emt 0:00:00]} 5. O-O {[%emt 0:00:30]} Nc6 {[%emt 0:00:00]} 6. c3 {[%emt 0:01:30]} e5 {[%emt 0:00:30]} 7. d3 {[%emt 0:01:30]} Nge7 {[%emt 0:00:30]} 8. a3 {[%emt 0:01:30]} O-O {[%emt 0:00:30]} 9. b4 {[%emt 0:00:30]} a6 {[%emt 0:00:00]} 10. Nbd2 {[%emt 0:13:30]} h6 {[%emt 0:01:00]} 11. Bb2 {[%emt 0:01:30]} Be6 {[%emt 0:04:30]} 12. Nb3 {[%emt 0:00:30]} b6 {[%emt 0:05:30]} 13. d4 {[%emt 0:11:30]} exd4 {[%emt 0:02:30]} 14. cxd4 {[%emt 0:06:30]} Bc4 {[%emt 0:00:30]} 15. Re1 {[%emt 0:07:30]} cxb4 {[%emt 0:00:30]} 16. axb4 {[%emt 0:26:30]} Nxb4 {[%emt 0:01:30]} 17. Ba3 {[%emt 0:03:30]} a5 {[%emt 0:00:30]} 18. Nfd2 {[%emt 0:05:59]} b5 {[%emt 0:08:30]} 19. e5 {[%emt 0:02:00]} Bd5 {[%emt 0:09:30]} 20. Bxb4 {[%emt 0:07:16]} axb4 {[%emt 0:00:30]} 21. Rxa8 {[%emt 0:00:35]} Qxa8 {[%emt 0:02:30]} 22. exd6 {[%emt 0:00:19]} Nf5 {[%emt 0:00:30]} 23. Ne4 {[%emt 0:03:56]} Nxd6 {[%emt 0:00:30]} 24. Nxd6 {[%emt 0:02:19]} Bxg2 {[%emt 0:00:00]} 25. Nxb5 {[%emt 0:00:58]} Bh1 {[%emt 0:05:00]} 26. d5 {[%emt 0:00:31]} Qxd5 {[%emt 0:00:00]} 27. Qxd5 {[%emt 0:00:29]} Bxd5 {[%emt 0:00:00]} 28. Nc5 {[%emt 0:00:35]} b3 {[%emt 0:00:30]} 29. Rb1 {[%emt 0:00:30]} b2 {[%emt 0:00:00]} 0-1

[Event "ESTCC 50 2019"]
[Site "Mali Losinj"]
[Date "2019.09.25"]
[Round "8.9"]
[White "Mikhalchishin, Adrian"]
[Black "Burchardt, Brigitte"]
[Result "1-0"]
[ECO "B86"]
[WhiteElo "2465"]
[BlackElo "2092"]
[Annotator "ChessBase"]
[PlyCount "47"]
[EventDate "2019.09.18"]
[EventType "team-tourn"]
[EventCountry "CRO"]
[SourceTitle "playchess.com"]
[Source "ChessBase"]
[SourceQuality "1"]
[WhiteTeam "Slovenia"]
[BlackTeam "Germany"]
[WhiteTeamCountry "SLO"]
[BlackTeamCountry "GER"]
[TimeControl "40/5400+30:1800+30"]

1. e4 {[%emt 0:00:30]} c5 {[%emt 0:00:30]} 2. Nf3 {[%emt 0:00:00]} d6 {[%emt 0:00:00]} 3. d4 {[%emt 0:00:00]} cxd4 {[%emt 0:00:00]} 4. Nxd4 {[%emt 0:00:00]} Nf6 {[%emt 0:00:30]} 5. Nc3 {[%emt 0:00:00]} a6 {[%emt 0:00:00]} 6. Bc4 {[%emt 0:00:30]} e6 {[%emt 0:01:00]} 7. Bb3 {[%emt 0:00:30]} Be7 {[%emt 0:00:30]} 8. f4 {[%emt 0:02:30]} Qc7 {[%emt 0:04:30]} 9. g4 {[%emt 0:05:30]} Nc6 {[%emt 0:04:30]} 10. g5 {[%emt 0:01:30]} Nxd4 {[%emt 0:02:30]} 11. Qxd4 {[%emt 0:00:30]} Nh5 {[%emt 0:00:30]} 12. Be3 {[%emt 0:04:30]} O-O {[%emt 0:12:30]} 13. O-O-O {[%emt 0:01:30]} Kh8 {[%emt 0:11:30]} 14. Rhf1 {[%emt 0:05:30]} f5 {[%emt 0:22:30]} 15. exf5 {[%emt 0:21:30]} Rxf5 {[%emt 0:00:30]} 16. Ne4 {[%emt 0:00:30]} d5 {[%emt 0:01:30]} 17. Ng3 {[%emt 0:00:30]} Nxg3 {[%emt 0:03:30]} 18. hxg3 {[%emt 0:00:30]} Bd7 {[%emt 0:04:30]} 19. g4 {[%emt 0:01:30]} Rff8 {[%emt 0:11:19]} 20. Rh1 {[%emt 0:02:30]} Bb5 {[%emt 0:11:18]} 21. g6 {[%emt 0:08:30]} Rf6 {[%emt 0:03:43]} 22. Rxh7+ {[%emt 0:00:30]} Kg8 {[%emt 0:00:02]} 23. f5 {[%emt 0:01:30]} Be8 {[%emt 0:00:37]} 24. Rdh1 {[%emt 0:00:30]} 1-0

[Event "ESTCC 50 2019"]
[Site "Mali Losinj"]
[Date "2019.09.25"]
[Round "8.11"]
[White "Mencinger, Vojko"]
[Black "Kierzek, Mira"]
[Result "1-0"]
[ECO "B00"]
[WhiteElo "2332"]
[BlackElo "2015"]
[Annotator "NA"]
[PlyCount "83"]
[EventDate "2019.09.18"]
[EventType "team-tourn"]
[EventCountry "CRO"]
[SourceTitle "playchess.com"]
[Source "ChessBase"]
[SourceQuality "1"]
[WhiteTeam "Slovenia"]
[BlackTeam "Germany"]
[WhiteTeamCountry "SLO"]
[BlackTeamCountry "GER"]
[TimeControl "40/5400+30:1800+30"]

1. e4 {[%emt 0:01:30]} Nc6 {[%emt 0:00:30]} 2. d4 {[%emt 0:01:30]} d6 {[%emt 0:00:30]} 3. f3 {[%emt 0:07:30]} Nf6 {[%emt 0:03:30]} 4. Be3 {[%emt 0:00:30]} g6 {[%emt 0:05:30]} 5. c3 {[%emt 0:04:30]} Bg7 {[%emt 0:01:30]} 6. Bd3 {[%emt 0:00:00]} a6 {[%emt 0:04:30]} 7. Ne2 {[%emt 0:00:00]} e5 {[%emt 0:02:30]} 8. d5 {[%emt 0:00:30]} Ne7 {[%emt 0:00:30]} 9. c4 {[%emt 0:02:30]} Nd7 {[%emt 0:05:30]} 10. Nbc3 {[%emt 0:00:30]} O-O {[%emt 0:00:30]} 11. O-O {[%emt 0:15:30]} f5 {[%emt 0:01:30]} 12. b4 {[%emt 0:00:30]} f4 {[%emt 0:01:30]} 13. Bf2 {[%emt 0:00:00]} g5 {[%emt 0:02:30]} 14. c5 {[%emt 0:01:00]} Nf6 {[%emt 0:00:30]} 15. Na4 {[%emt 0:08:30]} Ng6 {[%emt 0:15:30]} 16. cxd6 {[%emt 0:01:30]} cxd6 {[%emt 0:00:30]} 17. Nb6 {[%emt 0:01:30]} Rb8 {[%emt 0:00:30]} 18. Rc1 {[%emt 0:06:30]} Bd7 {[%emt 0:09:30]} 19. Qc2 {[%emt 0:06:30]} Ne8 {[%emt 0:02:30]} 20. a4 {[%emt 0:05:30]} g4 {[%emt 0:04:30]} 21. Nxd7 {[%emt 0:01:30]} Qxd7 {[%emt 0:00:30]} 22. Kh1 {[%emt 0:04:30]} h5 {[%emt 0:00:30]} 23. b5 {[%emt 0:02:30]} axb5 {[%emt 0:04:30]} 24. Bxb5 {[%emt 0:00:00]} Qe7 {[%emt 0:03:30]} 25. Ba7 {[%emt 0:01:00]} Ra8 {[%emt 0:00:30]} 26. Bb6 {[%emt 0:00:30]} Bf6 {[%emt 0:05:30]} 27. Qb3 {[%emt 0:00:30]} Kh7 {[%emt 0:00:30]} 28. Rc2 {[%emt 0:00:30]} Rf7 {[%emt 0:01:30]} 29. Rfc1 {[%emt 0:00:30]} Nf8 {[%emt 0:07:42]} 30. Rc8 {[%emt 0:06:30]} Rxc8 {[%emt 0:00:25]} 31. Rxc8 {[%emt 0:00:30]} Nd7 {[%emt 0:00:14]} 32. a5 {[%emt 0:00:00]} Bg7 {[%emt 0:05:07]} 33. Bd8 {[%emt 0:02:00]} Qf8 {[%emt 0:01:17]} 34. Bb6 {[%emt 0:06:25]} Qe7 {[%emt 0:01:24]} 35. Bf2 {[%emt 0:01:24]} Kg6 {[%emt 0:04:52]} 36. Ba4 {[%emt 0:01:44]} Ndf6 {[%emt 0:04:15]} 37. Bh4 {[%emt 0:00:23]} Nc7 {[%emt 0:00:33]} 38. Qxb7 {[%emt 0:05:20]} Bh6 {[%emt 0:00:24]} 39. a6 {[%emt 0:00:36]} Bg5 {[%emt 0:00:28]} 40. Bf2 {[%emt 0:00:40]} h4 {[%emt 0:00:56]} 41. a7 {[%emt 0:04:28]} h3 {[%emt 0:04:53]} 42. Rxc7 {[%emt 0:01:30]} 1-0